bitfinex/quotes_ETHUSD_20250806
["timestamp","ask_amount","ask_price","bid_price","bid_amount"]
[1754494783608,0.4527,3648.2,3648.0,0.1368]
[1754494784765,0.4527,3648.5,3648.0,0.1368]
[1754494784915,0.4527,3648.5,3648.1,0.4521]
[1754494785260,0.4527,3648.5,3648.4,0.1368]
[1754494785411,3.0,3648.7,3648.4,0.1368]
[1754494786049,0.4527,3648.6,3648.4,0.1368]
[1754494786428,0.4527,3648.5,3648.4,0.1368]
[1754494787225,0.4527,3648.5,3648.0,0.1368]
[1754494787421,3.0,3648.7,3648.0,0.1368]
[1754494787742,0.4527,3648.4,3648.0,0.1368]
[1754494788050,0.4527,3648.3,3648.0,0.1368]
[1754494788250,0.4527,3648.2,3648.0,0.1368]
[1754494788414,0.1368,3648.6,3648.0,0.1368]
[1754494788613,0.4527,3648.1,3648.0,0.1368]
[1754494789133,0.4527,3648.4,3648.0,0.1368]
[1754494789315,0.1368,3648.6,3648.0,2.87802047]
[1754494789538,0.4527,3648.5,3648.0,2.87802047]
[1754494789745,0.4527,3648.5,3648.1,2.74114238]
[1754494789929,0.4527,3648.4,3648.3,2.74100265]
[1754494790132,0.001,3648.6,3648.3,2.87780265]
[1754494790337,0.001,3648.6,3648.3,0.1368]
[1754494790569,0.001,3648.6,3648.4,3.19302752]
[1754494790748,0.001,3648.6,3648.5,3.63135515]
[1754494791054,0.001,3648.6,3648.5,4.10315515]
[1754494791856,0.001,3648.6,3648.5,3.99376367]
[1754494792059,0.001,3648.6,3648.5,4.03396367]
[1754494793394,0.001,3648.6,3648.5,3.99376367]
[1754494794157,0.001,3648.6,3648.5,8.33376367]
[1754494794354,0.001,3648.6,3648.5,8.30635515]
[1754494795151,0.001,3648.6,3648.5,8.30335515]
[1754494796265,0.001,3648.6,3648.5,7.83055515]
[1754494796468,0.001,3648.6,3648.5,8.30235515]
[1754494797968,0.001,3648.6,3648.5,8.30035515]
[1754494798828,0.4976,3648.6,3648.5,3.49455515]
[1754494799028,0.4976,3648.6,3648.5,7.82755515]
[1754494800066,0.001,3648.6,3648.5,7.82755515]
[1754494800266,0.001,3648.6,3648.5,8.29935515]
[1754494800845,0.001,3648.6,3648.3,0.4966]
[1754494801038,0.001,3648.6,3648.5,7.0738524]
[1754494801564,0.4976,3648.6,3648.5,2.7408524]
[1754494801768,0.4976,3648.6,3648.5,7.2076524]
[1754494801964,0.001,3648.6,3648.5,3.3494524]
[1754494802264,0.001,3648.6,3648.5,7.2066524]
[1754494802436,0.4976,3648.6,3648.5,7.2066524]
[1754494802957,0.4976,3648.6,3648.5,2.8776524]
[1754494803133,0.4976,3648.6,3648.5,7.2056524]
[1754494803475,0.4976,3648.6,3648.5,7.2046524]
[1754494803649,0.4976,3648.6,3648.5,2.8776524]
[1754494803846,0.4976,3648.6,3648.5,7.2036524]
[1754494804167,0.4976,3648.6,3648.5,2.8776524]
[1754494804468,0.4976,3648.6,3648.5,7.2026524]
[1754494805060,0.001,3648.6,3648.5,7.2026524]
[1754494805434,0.001,3648.6,3648.5,7.6744524]
[1754494806064,0.001,3648.6,3648.5,7.2016524]
[1754494806266,0.4976,3648.6,3648.5,2.8776524]
[1754494806433,0.4976,3648.6,3648.5,7.1996524]
[1754494806764,0.001,3648.6,3648.5,7.6714524]
[1754494807128,0.001,3648.6,3648.5,3.3494524]
[1754494807372,0.001,3648.6,3648.5,7.6684524]
[1754494807557,0.001,3648.6,3648.5,7.1966524]
[1754494807758,0.4976,3648.6,3648.5,7.1966524]
[1754494808537,4.57524752,3649.4,3648.9,2.74055194]
[1754494808743,4.57524752,3649.4,3649.3,2.74025155]
[1754494809062,0.5,3649.5,3649.4,2.74017646]
[1754494809357,0.5,3649.5,3649.4,3.23937822]
[1754494809571,0.5,3649.5,3649.4,3.21197646]
[1754494809736,0.5,3649.5,3649.4,4.51323943]
[1754494810370,0.5,3649.5,3649.4,4.54064119]
[1754494811162,0.004,3649.8,3649.4,4.54064119]
[1754494811163,0.004,3649.8,3649.7,2.73995122]
[1754494811473,0.004,3649.8,3649.7,7.05795122]
[1754494811664,0.004,3649.8,3649.7,9.01889374]
[1754494812057,0.004,3649.8,3649.7,9.80600674]
[1754494813275,0.5,3649.9,3649.7,9.84620674]
[1754494813476,0.5,3650.7,3650.3,2.73950086]
[1754494813675,0.5,3650.7,3650.6,2.73927573]
[1754494813997,0.51615234,3651.4,3650.8,2.73912567]
[1754494814292,0.51615234,3651.4,3650.8,7.05412567]
[1754494814293,0.01955234,3651.4,3650.8,7.05412567]
[1754494814578,0.01955234,3651.4,3651.3,2.73875058]
[1754494814776,0.01955234,3651.4,3651.3,7.05575058]
[1754494815074,0.01955234,3651.4,3651.3,7.52755058]
[1754494816183,0.01955234,3651.4,3651.3,2.73875058]
[1754494816338,0.01955234,3651.4,3651.3,3.21055058]
[1754494816544,1.052,3651.8,3651.5,2.73860057]
[1754494816743,1.052,3651.8,3651.5,7.53640057]
[1754494816988,3.75276075,3651.6,3651.5,7.53640057]
[1754494817196,3.75276075,3651.6,3651.5,2.73860057]
[1754494817362,4.24936075,3651.6,3651.5,7.06660057]
[1754494817558,3.75276075,3651.6,3651.5,7.53840057]
[1754494817887,3.75276075,3651.6,3651.5,9.11610818]
[1754494818044,3.75276075,3651.6,3651.5,7.53840057]
[1754494818243,3.75276075,3651.6,3651.5,3.76040057]
[1754494818485,1.052,3651.8,3651.7,3.28845058]
[1754494818675,0.5,3652.3,3652.2,2.73807568]
[1754494818842,0.5,3652.7,3652.6,2.73777583]
[1754494819044,0.5,3652.7,3652.6,7.20457583]
[1754494819371,0.5,3652.7,3652.6,7.67637583]
[1754494819675,4.93770053,3653.8,3652.8,2.73762593]
[1754494819934,0.9966,3653.1,3652.8,7.20342593]
[1754494820154,4.93770053,3653.8,3653.4,2.73717632]
[1754494820295,0.4966,3653.4,3652.8,0.4718]
[1754494820497,4.93770053,3653.8,3653.4,2.73717632]
[1754494820733,4.93770053,3653.8,3653.7,0.1368]
[1754494820932,4.93770053,3653.8,3653.7,4.4718]
[1754494821134,4.93770053,3653.8,3653.7,4.4708]
[1754494821403,5.84030053,3653.8,3653.7,4.4708]
[1754494821719,5.84030053,3653.8,3653.5,4.4698]
[1754494821918,0.4725,3653.7,3653.4,0.1368]
[1754494822118,0.4301,3653.6,3653.4,4.4698]
[1754494822332,0.9026,3653.5,3653.4,0.1368]
[1754494822542,0.9026,3653.5,3652.0,0.4625]
[1754494822707,0.9026,3653.4,3652.9,0.1368]
[1754494823093,0.9026,3653.3,3652.9,0.1368]
[1754494823304,0.9026,3653.2,3652.9,0.1368]
[1754494823544,0.9026,3653.1,3652.9,0.1368]
[1754494823920,0.9026,3653.0,3652.9,0.1368]
[1754494824142,0.9026,3653.0,3652.8,0.1368]
[1754494824329,0.4725,3652.9,3652.8,0.1368]
[1754494824532,0.4725,3652.9,3651.8,1.37661607]
[1754494824533,0.4725,3652.9,3652.5,4.33]
[1754494824845,0.4725,3652.9,3652.8,0.1368]
[1754494825233,0.4725,3652.9,3652.4,4.33]
[1754494825410,0.4725,3652.8,3652.7,0.1368]
[1754494825708,0.4725,3652.8,3651.5,2.73860057]
[1754494825709,0.4725,3652.8,3651.4,0.4625]
[1754494825906,2.73796585,3652.4,3650.9,2.7390107]
[1754494826132,2.73872046,3651.4,3651.1,0.04]
[1754494826333,2.73882559,3651.2,3651.1,0.04]
[1754494826536,3.0,3650.6,3650.4,0.823137]
[1754494826749,3.0,3650.5,3650.4,0.823137]
[1754494826964,0.9026,3650.5,3650.1,0.04]
[1754494827164,5.73980109,3649.9,3649.8,0.1368]
[1754494827331,5.74032664,3649.2,3649.1,0.04]
[1754494827658,5.74032664,3649.2,3648.0,0.825623]
[1754494827659,30.877618,3649.1,3648.0,0.825623]
[1754494827967,30.877618,3649.0,3648.0,0.002]
[1754494828266,3.0,3648.2,3648.0,0.002]
[1754494828473,3.0,3648.2,3648.0,2.74320826]
[1754494828616,0.3851,3649.0,3648.0,2.74320826]
[1754494828617,0.3851,3649.0,3648.0,0.002]
[1754494828817,3.4725,3648.8,3648.1,2.78114408]
[1754494829059,4.8485,3648.8,3648.2,3.01936589]
[1754494829383,0.4725,3648.7,3648.2,0.27831441]
[1754494829516,0.4725,3648.7,3648.1,0.04]
[1754494829711,0.4725,3648.7,3648.1,2.78113617]
[1754494829951,0.4725,3648.7,3648.1,0.04]
[1754494830366,0.3851,3648.6,3648.1,0.04]
[1754494830531,0.4725,3648.7,3648.1,0.04]
[1754494830726,3.0,3649.0,3648.1,0.5025]
[1754494830926,0.4725,3648.5,3648.1,0.04]
[1754494831357,3.0,3648.8,3648.4,2.74087329]
[1754494831660,0.8576,3648.7,3648.1,0.04]
[1754494831859,30.877618,3648.6,3648.1,0.04]
[1754494832160,3.0,3648.4,3648.1,0.04]
[1754494832547,4.388,3648.3,3648.1,0.04]
[1754494834221,31.55379579,3648.2,3648.1,0.04]
[1754494834542,3.55,3648.1,3648.0,0.002]
[1754494834723,32.285218,3648.1,3648.0,0.002]
[1754494835166,3.4725,3648.1,3648.0,0.002]
[1754494835324,0.4725,3648.6,3648.5,2.7408524]
[1754494835524,6.581,3649.3,3648.0,0.002]
[1754494835525,4.387,3648.9,3648.8,2.74062705]
[1754494835750,4.8615,3649.4,3648.8,3.28872876]
[1754494836024,4.8615,3649.7,3649.2,2.74027153]
[1754494836223,3.4725,3649.6,3649.2,2.74029514]
[1754494836472,4.39,3649.5,3648.6,2.74077728]
[1754494836767,4.39,3649.5,3649.0,2.74045952]
[1754494836922,0.04,3649.9,3649.0,2.74045952]
[1754494837127,0.4725,3649.6,3649.1,2.74038878]
[1754494837330,0.04,3649.9,3649.3,2.74017979]
[1754494837551,4.5248,3649.7,3649.3,2.7402432]
[1754494837744,3.0,3649.6,3649.2,0.1368]
[1754494838258,3.4725,3649.6,3649.2,0.1368]
[1754494838465,3.4725,3649.6,3649.3,2.74022629]
[1754494838681,0.1368,3649.7,3649.6,2.7400263]
[1754494838879,0.04,3649.9,3649.6,0.1368]
[1754494839185,0.5125,3649.9,3649.6,0.1368]
[1754494839384,0.1368,3649.7,3649.1,0.1368]
[1754494839584,0.4725,3649.6,3648.5,2.74084782]
[1754494839798,0.1368,3649.2,3648.7,0.1368]
[1754494840088,4.8635,3650.3,3649.0,2.74047684]
[1754494840388,0.04,3650.9,3649.8,2.73987615]
[1754494840389,0.5125,3650.9,3649.8,2.73987615]
[1754494840683,3.5125,3650.9,3649.8,3.69397615]
[1754494840986,0.04,3650.9,3649.8,3.69397615]
[1754494841185,3.04,3650.9,3649.8,3.69397615]
[1754494841679,0.04,3650.9,3649.8,3.69397615]
[1754494842049,0.04,3650.9,3649.8,3.72137491]
[1754494842689,0.04,3650.9,3649.8,3.69397615]
[1754494843085,0.04,3650.9,3649.8,4.24397615]
[1754494843286,0.04,3650.9,3649.8,4.83157629]
[1754494843453,0.04,3650.9,3649.8,4.85897505]
[1754494844184,0.04,3650.9,3649.8,4.83157629]
[1754494844386,0.04,3650.9,3649.8,4.85897505]
[1754494844825,0.04,3650.9,3650.8,2.73912567]
[1754494845594,0.04,3650.9,3650.5,2.73935077]
[1754494845891,0.04,3650.9,3650.7,2.73915177]
[1754494846080,0.04,3650.9,3650.3,4.8535]
[1754494846081,0.04,3650.9,3650.4,2.73942102]
[1754494846250,0.04,3650.9,3650.8,2.73912567]
[1754494846450,1e-08,3650.9,3650.8,2.73912567]
[1754494846757,1e-08,3650.9,3650.8,3.72061692]
[1754494846952,1e-08,3650.9,3650.8,8.08022567]
[1754494847894,1e-08,3650.9,3650.8,8.63022567]
[1754494848091,1e-08,3650.9,3650.8,13.04110448]
[1754494849105,1e-08,3650.9,3650.8,13.03910448]
[1754494849395,1e-08,3650.9,3650.8,4.383]
[1754494849584,1e-08,3650.9,3650.8,7.12212567]
[1754494849961,1e-08,3650.9,3650.8,0.1368]
[1754494850512,1e-08,3650.9,3650.8,3.83002567]
[1754494850666,1e-08,3650.9,3650.8,7.25992567]
[1754494850864,1e-08,3650.9,3650.8,2.87592567]
[1754494851126,1e-08,3650.9,3650.8,7.26292567]
[1754494851366,1e-08,3650.9,3650.8,12.75407852]
[1754494853307,1e-08,3650.9,3650.8,8.36707852]
[1754494853813,1e-08,3650.9,3650.8,12.75307852]
[1754494854218,0.00100001,3650.9,3650.8,7.86757852]
[1754494854389,0.00100001,3650.9,3650.8,12.75307852]
[1754494854916,0.00100001,3650.9,3650.8,3.87887852]
[1754494855118,0.00100001,3650.9,3650.8,7.25992567]
[1754494855321,0.00100001,3650.9,3650.8,7.69862567]
[1754494856419,0.00100001,3650.9,3650.8,8.19812567]
[1754494856598,0.00100001,3650.9,3650.8,7.69862567]
[1754494856795,0.00100001,3650.9,3650.8,2.87592567]
[1754494857010,0.00100001,3650.9,3650.8,7.25992567]
[1754494857213,1e-08,3650.9,3650.8,12.30963932]
[1754494857651,1e-08,3650.9,3650.8,12.56020168]
[1754494858170,1e-08,3650.9,3650.8,12.56021201]
[1754494858461,1e-08,3650.9,3650.8,12.30963932]
[1754494858666,1e-08,3650.9,3650.8,12.56015026]
[1754494859088,1e-08,3650.9,3650.8,12.56014674]
[1754494859768,1e-08,3650.9,3650.8,12.06064674]
[1754494859965,1e-08,3650.9,3650.8,11.51064674]
[1754494860168,1e-08,3650.9,3650.8,7.12664674]
[1754494860371,0.46810001,3650.9,3650.8,0.1368]
[1754494860543,0.46810001,3650.9,3650.8,7.11612567]
[1754494860744,0.46810001,3650.9,3650.8,4.377]
[1754494861040,0.46810001,3650.9,3650.3,0.002]
[1754494861244,0.85320001,3650.9,3650.3,0.002]
[1754494861463,0.85320001,3650.9,3650.4,7.11540859]
[1754494861766,0.4681,3650.8,3650.4,4.376]
[1754494861965,0.38510001,3650.9,3650.5,2.73930074]
[1754494862273,3.0,3651.5,3650.4,4.376]
[1754494862274,0.4681,3650.7,3650.4,4.376]
[1754494862473,0.4681,3650.6,3650.5,2.73932877]
[1754494862636,0.4681,3650.6,3650.5,7.11335077]
[1754494863451,0.4681,3650.6,3650.4,4.374]
[1754494863649,0.4681,3651.0,3650.4,4.374]
[1754494863830,0.4681,3651.0,3650.9,2.73905064]
[1754494864165,0.4681,3651.4,3651.2,2.73878439]
[1754494864366,0.4681,3651.4,3650.8,4.376]
[1754494864367,0.3751,3651.9,3651.3,2.73870388]
[1754494864686,1.7,3651.8,3651.1,2.73885288]
[1754494864840,1.7,3651.8,3651.3,2.73873272]
[1754494865071,0.8032,3651.7,3650.8,4.376]
[1754494865271,0.4681,3651.6,3651.1,2.7388387]
[1754494865470,0.4681,3651.6,3651.2,2.73882406]
[1754494865804,0.3351,3651.5,3650.9,2.7390161]
[1754494866003,0.4681,3651.4,3650.9,2.7390161]
[1754494866222,0.3351,3651.3,3651.0,2.73893644]
[1754494866367,0.3351,3651.7,3651.2,2.73882318]
[1754494866566,0.3351,3651.6,3651.1,2.73886891]
[1754494866807,0.04,3651.9,3650.9,2.73905064]
[1754494867017,0.4681,3651.7,3651.0,0.71109889]
[1754494867169,0.4681,3651.7,3650.2,2.7395236]
[1754494867170,0.3351,3651.6,3650.5,4.371]
[1754494867374,0.4681,3651.5,3651.0,2.73893313]
[1754494867810,0.8032,3651.5,3651.0,2.73893313]
[1754494868006,0.8032,3651.4,3650.5,4.371]
[1754494868220,0.8032,3651.4,3650.6,0.25274562]
[1754494868424,0.8032,3651.4,3650.7,2.99194632]
[1754494868590,0.4681,3651.4,3651.0,2.73891462]
[1754494868783,0.4681,3651.3,3650.6,4.373]
[1754494868985,0.04,3651.9,3650.7,1.49695958]
[1754494869211,0.5081,3651.9,3651.4,2.73862979]
[1754494869510,0.4681,3651.8,3651.5,2.73859043]
[1754494869713,0.4681,3651.8,3651.2,4.372]
[1754494869714,0.4681,3651.7,3651.2,2.73880822]
[1754494869876,0.4681,3651.6,3651.2,2.73880822]
[1754494870080,0.4681,3651.5,3651.3,2.73874943]
[1754494870327,0.4681,3651.4,3651.2,2.738791]
[1754494870635,0.4681,3651.4,3651.3,2.99251566]
[1754494870934,0.6049,3651.8,3651.5,2.73856427]
[1754494871135,0.04,3651.9,3651.7,2.73845058]
[1754494871282,0.04,3651.9,3651.7,2.87520823]
[1754494871482,0.04,3651.9,3651.8,2.73837559]
[1754494871986,0.5081,3651.9,3651.8,2.73837559]
[1754494872551,0.5081,3651.9,3651.7,0.1368]
[1754494872816,0.8432,3651.9,3651.5,2.87538261]
[1754494872978,0.4681,3651.8,3651.6,2.99286597]
[1754494873183,0.04,3651.9,3651.8,2.73837559]
[1754494873380,0.04,3651.9,3651.8,2.87517559]
[1754494873723,0.5081,3651.9,3651.7,0.1368]
[1754494874012,0.04,3651.9,3651.8,2.73837559]
[1754494874188,0.5081,3651.9,3651.8,2.73837559]
[1754494874379,0.5081,3651.9,3651.4,4.368]
[1754494874710,0.6049,3651.8,3651.4,2.73861512]
[1754494874902,0.4681,3651.7,3651.4,2.73861512]
[1754494875101,0.4681,3651.6,3651.3,0.1368]
[1754494875285,0.4681,3651.5,3651.1,2.73885958]
[1754494875488,0.4681,3651.4,3651.2,0.39093004]
[1754494875690,0.1368,3651.6,3651.3,0.25413004]
[1754494875878,0.1368,3651.6,3651.1,0.1368]
[1754494876090,0.4681,3651.5,3651.2,2.99295419]
[1754494876367,0.4681,3651.4,3651.3,0.25414567]
[1754494876541,0.6049,3651.4,3651.3,0.25414567]
[1754494876851,0.6049,3651.4,3650.9,4.5008]
[1754494876852,0.6049,3651.4,3650.9,2.87582695]
[1754494877015,0.1368,3651.4,3651.0,0.25438461]
[1754494877219,0.1368,3651.4,3650.7,2.73918903]
[1754494877220,0.4681,3651.3,3651.1,0.25438461]
[1754494877532,0.8032,3651.3,3650.8,2.73907962]
[1754494877725,0.8032,3651.3,3650.7,2.7392007]
[1754494877726,0.8032,3651.3,3650.9,0.25435941]
[1754494877931,0.8032,3651.2,3651.0,0.25435941]
[1754494878115,0.8032,3651.2,3650.3,0.4407]
[1754494878116,0.4681,3651.1,3650.3,0.4407]
[1754494878339,0.4681,3651.1,3650.5,0.1368]
[1754494878340,0.1368,3651.0,3650.5,0.1368]
[1754494878537,0.1368,3651.0,3650.7,2.7391576]
[1754494878737,0.4681,3650.9,3650.8,0.25431602]
[1754494880641,0.8032,3650.9,3650.8,0.25431602]
[1754494880831,0.8032,3650.9,3650.3,2.74149414]
[1754494881037,0.1368,3650.7,3650.4,0.25440147]
[1754494881238,0.4804,3650.6,3650.5,0.25440147]
[1754494882173,0.8155,3650.6,3650.5,0.25440147]
[1754494882472,0.8155,3650.6,3650.3,0.002]
[1754494882635,2.87622581,3650.4,3650.3,0.002]
[1754494882840,0.1368,3650.4,3650.3,0.002]
[1754494883022,0.6172,3650.4,3650.3,0.002]
[1754494884283,1.8368,3650.4,3650.3,0.002]
[1754494884438,0.1368,3650.7,3650.3,0.4327]
[1754494884755,0.1368,3650.8,3650.4,2.73942032]
[1754494884961,0.1368,3650.8,3650.6,2.73927573]
[1754494885132,0.4804,3651.4,3650.8,2.73906231]
[1754494885473,0.1368,3651.1,3650.3,0.002]
[1754494885778,0.1368,3650.8,3650.5,2.73932487]
[1754494886425,0.1368,3650.8,3650.3,0.1388]
[1754494886622,0.1368,3650.8,3650.5,2.73935062]
[1754494886817,0.1368,3650.8,3650.5,2.73930855]
[1754494887021,0.1368,3650.8,3650.4,2.73936357]
[1754494887481,0.6172,3650.8,3650.4,2.73936357]
[1754494887627,0.6172,3650.8,3650.3,0.1388]
[1754494887826,0.4804,3650.7,3650.3,2.87828802]
[1754494888060,0.1368,3650.8,3650.3,0.1388]
[1754494888279,0.1368,3650.8,3650.5,2.73929935]
[1754494888474,0.4804,3651.4,3650.6,0.9274]
[1754494888781,0.1368,3651.1,3650.8,2.73910769]
[1754494888925,0.1368,3651.1,3650.7,2.73916804]
[1754494889127,0.1368,3651.1,3650.6,2.73925626]
[1754494889451,0.4804,3651.0,3650.5,2.73931661]
[1754494889861,0.1368,3651.1,3650.4,2.87619851]
[1754494890165,0.4804,3650.9,3650.3,2.74146133]
[1754494890324,0.1368,3650.6,3650.4,0.25421032]
[1754494890524,0.1368,3650.6,3650.3,0.002]
[1754494890857,0.1368,3650.6,3650.4,0.4307]
[1754494891019,0.4804,3651.3,3650.5,3.16997703]
[1754494891223,0.1368,3650.9,3650.5,0.4307]
[1754494891424,3.0,3651.1,3650.3,0.002]
[1754494891425,0.4804,3650.8,3650.3,0.002]
[1754494891625,0.1368,3650.7,3650.3,0.002]
[1754494891842,0.6172,3650.7,3650.4,2.73940198]
[1754494892064,0.6172,3650.7,3650.3,2.74143402]
[1754494892380,0.1368,3650.7,3650.3,3.17216798]
[1754494892753,0.1368,3650.7,3650.4,2.73940855]
[1754494893058,0.1368,3650.7,3650.3,3.17217323]
[1754494893460,0.6172,3650.7,3650.3,2.74147323]
[1754494893774,0.1368,3650.7,3650.4,0.4307]
[1754494893978,4.7,3651.4,3651.0,2.73890865]
[1754494893979,1.7,3651.4,3651.0,2.73890865]
[1754494894290,0.1368,3651.6,3651.4,2.7386712]
[1754494894582,0.1368,3651.6,3651.5,2.73860057]
[1754494894760,0.1368,3651.7,3651.5,0.9274]
[1754494894926,0.001,3652.0,3651.6,3.16920561]
[1754494895158,0.1378,3652.0,3651.7,3.16910358]
[1754494895491,0.1378,3652.0,3651.7,0.4307]
[1754494896267,0.1378,3652.0,3651.7,2.73842869]
[1754494896492,0.001,3652.0,3651.8,3.16907559]
[1754494896808,0.001,3652.0,3651.8,3.80257559]
[1754494897760,0.001,3652.0,3651.7,2.73843456]
[1754494897993,0.001,3652.0,3651.4,2.7386745]
[1754494898298,0.5204,3651.9,3651.6,2.73851652]
[1754494898504,0.04,3651.9,3651.6,2.73851652]
[1754494898705,0.041,3651.9,3651.8,2.73837559]
[1754494899062,0.041,3651.9,3651.6,0.4967]
[1754494899263,0.041,3651.9,3651.6,2.73850786]
[1754494899663,0.041,3651.9,3651.6,2.73852557]
[1754494899862,0.041,3651.9,3651.5,0.4307]
[1754494900065,0.041,3651.9,3651.6,2.73847847]
[1754494900265,0.4804,3651.8,3651.2,7.07481414]
[1754494900568,0.4804,3651.8,3651.5,2.73859935]
[1754494900778,0.041,3651.9,3651.3,2.87554696]
[1754494900779,1.741,3651.9,3651.4,2.73864943]
[1754494900979,0.1368,3651.8,3651.5,0.9274]
[1754494901185,0.1368,3651.8,3651.6,2.73852557]
[1754494902002,0.1368,3651.8,3651.5,0.4307]
[1754494902189,0.1368,3651.8,3651.6,0.4307]
[1754494902394,0.1368,3651.8,3651.7,2.73845058]
[1754494903405,0.1368,3651.8,3651.6,3.16919779]
[1754494903608,0.1368,3651.8,3651.5,0.4967]
[1754494903609,0.1368,3651.8,3651.5,2.73857611]
[1754494903972,0.1368,3651.8,3651.6,2.73849321]
[1754494904318,0.1368,3651.8,3651.4,2.73865572]
[1754494904319,0.1368,3651.8,3651.5,2.73857987]
[1754494904483,0.1368,3651.8,3651.4,0.4307]
[1754494904685,0.1368,3651.8,3651.1,7.20467997]
[1754494904884,0.4804,3651.7,3651.1,2.73888768]
[1754494905207,0.4804,3651.7,3650.9,2.73900747]
[1754494905410,0.1368,3651.2,3650.9,2.73903213]
[1754494905717,0.6172,3651.2,3651.0,2.99260311]
[1754494906012,0.1368,3651.2,3650.8,0.4307]
[1754494906196,0.1368,3651.2,3651.1,2.7389006]
[1754494906371,0.1368,3651.2,3650.9,3.42337315]
[1754494906372,0.1368,3651.2,3651.0,2.73895348]
[1754494906574,0.1368,3651.2,3650.9,3.16972212]
[1754494906877,0.1368,3651.2,3651.0,2.99259856]
[1754494907086,0.1368,3651.2,3651.0,2.73894883]
[1754494907411,0.1368,3651.2,3650.8,2.73911016]
[1754494907621,0.6172,3651.2,3650.9,0.25362277]
[1754494908909,0.1368,3651.0,3650.9,0.25362277]
[1754494909407,0.1368,3651.0,3650.9,2.99267341]
[1754494909913,0.1368,3651.0,3650.7,2.73914728]
[1754494910152,0.1368,3651.0,3650.8,0.2536148]
[1754494910711,0.1368,3651.0,3650.5,0.1388]
[1754494910882,0.4804,3650.9,3650.6,0.25365668]
[1754494911085,0.6241,3650.8,3650.7,0.25365668]
[1754494911406,0.6241,3650.8,3650.5,0.25565668]
[1754494911608,0.6241,3650.8,3650.6,0.25365668]
[1754494911768,0.6241,3650.8,3650.5,0.002]
[1754494911769,0.4873,3650.7,3650.5,0.002]
[1754494911973,0.1368,3650.8,3650.5,2.99505252]
[1754494912174,0.1368,3650.8,3650.6,0.25372345]
[1754494912369,0.4873,3650.8,3650.6,0.25372345]
[1754494912712,0.1368,3650.7,3650.5,0.002]
[1754494913483,0.6241,3650.7,3650.5,0.002]
[1754494914233,0.1368,3650.7,3650.6,3.21017573]
[1754494914442,5.1873,3651.6,3650.6,1.84199902]
[1754494914599,0.1368,3651.1,3650.6,1.1043]
[1754494914800,0.1368,3651.1,3650.7,0.9675]
[1754494915142,0.1368,3651.2,3650.9,2.73900445]
[1754494915337,0.1368,3651.2,3651.0,0.4709]
[1754494915723,0.1368,3651.2,3651.1,3.7064006]
[1754494916238,3.0,3651.6,3651.4,2.73867026]
[1754494916404,3.1368,3651.6,3651.5,0.4709]
[1754494916598,0.041,3651.9,3651.7,2.73838685]
[1754494916805,0.1368,3651.8,3651.6,0.4709]
[1754494917000,0.1368,3651.8,3651.7,3.70595058]
[1754494917429,0.1368,3651.8,3651.7,0.4709]
[1754494917740,0.1368,3651.8,3651.5,2.73857769]
[1754494918042,0.1368,3651.8,3651.4,0.9675]
[1754494918202,0.1368,3651.8,3651.5,3.20949072]
[1754494918402,0.1368,3651.8,3651.6,3.20939477]
[1754494918833,0.1368,3651.8,3651.7,2.73845058]
[1754494919036,0.1368,3651.8,3651.7,3.70595058]
[1754494919251,0.1368,3651.8,3651.7,0.9675]
[1754494919558,0.1368,3651.8,3651.7,3.70595058]
[1754494919851,0.1368,3651.8,3651.7,0.9675]
[1754494920063,0.1368,3651.8,3651.7,0.4709]
[1754494920353,0.1378,3651.8,3651.7,0.4709]
[1754494920657,0.001,3651.8,3651.7,3.84275058]
[1754494921923,0.001,3651.8,3651.7,3.34615058]
[1754494922466,0.001,3651.8,3651.4,0.1368]
[1754494922613,0.1368,3651.6,3651.3,4.308]
[1754494923175,0.4873,3651.5,3651.1,4.309]
[1754494923325,0.1368,3651.4,3651.1,4.309]
[1754494923664,0.1368,3651.4,3651.2,2.73879497]
[1754494923971,0.1368,3651.4,3651.1,0.4709]
[1754494924417,0.1368,3651.4,3651.1,3.20975459]
[1754494924869,0.1368,3651.4,3651.2,2.73881471]
[1754494925210,0.1368,3651.4,3651.1,0.4709]
[1754494925356,0.1368,3651.4,3651.2,0.4709]
[1754494925653,0.1368,3651.4,3651.0,3.20984735]
[1754494926054,0.4873,3651.3,3650.9,0.002]
[1754494926465,0.4873,3651.2,3650.9,0.002]
[1754494926630,0.1368,3651.0,3650.9,0.002]
[1754494927161,0.6241,3651.0,3650.9,0.002]
[1754494927654,3.6241,3651.0,3650.9,0.002]
[1754494927854,3.9592,3651.0,3650.9,0.002]
[1754494928056,3.6241,3651.0,3650.9,0.002]
[1754494928625,3.1368,3651.0,3650.9,0.002]
[1754494928825,4.303,3651.4,3650.9,0.9695]
[1754494929029,0.1368,3651.3,3651.0,2.73892571]
[1754494929263,0.1368,3651.3,3651.1,0.4709]
[1754494929858,0.1368,3651.6,3651.2,0.9675]
[1754494930061,0.1368,3651.6,3651.3,0.4709]
[1754494930374,0.1368,3651.4,3650.9,0.002]
[1754494930544,0.1368,3651.1,3650.9,0.002]
[1754494931224,0.001,3651.8,3651.0,3.70647562]
[1754494931430,0.001,3651.8,3651.6,2.73846243]
[1754494931626,0.001,3651.8,3651.6,2.73849788]
[1754494931844,0.001,3651.8,3651.7,1.1043]
[1754494932031,0.001,3651.8,3651.7,3.84275058]
[1754494932253,0.001,3651.8,3651.7,3.34615058]
[1754494932431,0.001,3651.8,3651.7,0.6077]
[1754494933052,0.001,3651.8,3651.7,3.84275058]
[1754494933362,0.001,3651.8,3651.7,4.50087896]
[1754494935170,0.001,3651.8,3651.7,8.80487896]
[1754494937761,0.001,3651.8,3651.7,3.34615058]
[1754494938875,0.001,3651.8,3651.7,0.1368]